[Event "1st Chessable Sunway Formentera 2022"]
[Site "Formentera Punta Prima"]
[Date "2022.05.04"]
[Round "6"]
[White "Eugene, Floryan"]
[Black "Chkhaidze, Nikoloz"]
[Result "1-0"]
[ECO "B48"]
[WhiteElo "2370"]
[BlackElo "2301"]
[Annotator "TA"]
[PlyCount "149"]
[EventDate "2022.05.05"]
[EventType "swiss"]
[EventCountry "ESP"]
[SourceTitle "playchess.com"]
[Source "ChessBase"]
[SourceQuality "1"]
[TimeControl "40/5400+30:1800+30"]

{[%evp 11,149,30,38,0,10,0,14,0,0,7,0,20,0,0,0,1,41,28,29,26,84,73,204,196,210,41,49,59,209,208,203,194,252,0,0,0,0,0,0,0,0,0,0,0,0,0,0,-94,220,-105,219,222,197,216,207,197,197,199,231,232,358,360,385,223,208,198,441,426,421,396,391,384,559,531,512,524,530,505,509,502,661,545,725,537,516,366,663,445,652,631,623,616,816,814,792,811,819,815,813,812,806,802,803,771,735,724,807,793,764,582,759,660,704,594,839,836,772,755,741,731,687,672,667,667,995,966,4598,4598,29971,29972,29961,12843,29976,29978,29978,29980,29984,29985,29985,29986]} 1. e4 {[%emt 0:00:06]} c5 {[%emt 0:00:01]} 2. Nf3 {[%emt 0:00:20]} e6 {[%emt 0:00:02]} 3. d4 {[%emt 0:00:15]} cxd4 {[%emt 0:00:02]} 4. Nxd4 {[%emt 0:00:08]} Nc6 {[%emt 0:00:01]} 5. Nc3 {[%emt 0:00:29][%cal Bb1c3,Bc3e2,Be2f4][%mdl 32]} Qc7 {[%emt 0:00:03]} 6. Be3 {[%emt 0:00:13]} a6 {[%emt 0:00:01]} 7. g4 {[%emt 0:00:06] B48: Sicilian: Taimanov: 5 Nc3 Qc7 6 Be3 a6 without Be2.} b5 {[%emt 0:00:47]} 8. Nxc6 {[%emt 0:01:11]} Qxc6 {[%emt 0:00:06]} 9. Qd2 {[%emt 0:00:16] The position is equal.} b4 {[%emt 0:00:35]} 10. Ne2 {[%emt 0:00:12]} Qxe4 {[%emt 0:00:10]} 11. Rg1 {[%emt 0:00:11]} Qc4 {[%emt 0:00:18]} 12. Nf4 {[%emt 0:00:45]} Qc7 {[%emt 0:00:10]} 13. O-O-O {[%emt 0:00:28]} Bb7 {[%emt 0:00:42] [#]} 14. Bb6 $1 {[%emt 0:05:27] [#]} Qc6 $146 {[%emt 0:03:17]} ({Predecessor:} 14... Qc8 15. Nh5 Nf6 16. Bd4 Nxh5 17. gxh5 Rg8 18. Bd3 g6 19. hxg6 hxg6 20. h4 Qc7 {½-½ (31) Niedbala,B (2385)-Czopor,M (2423) Sypniewo 2022}) 15. Bg2 {[%emt 0:24:28]} d5 {[%emt 0:00:27]} (15... Qc8 $1 $11) 16. Bd4 $1 $16 {[%emt 0:12:02] White is more active.} Nf6 {[%emt 0:02:16]} (16... Ne7 $16) 17. Bxf6 $18 {[%emt 0:13:09]} gxf6 {[%emt 0:00:08] [#]} 18. Bxd5 $1 {[%emt 0:00:19][%mdl 512]} exd5 $14 {[%emt 0:36:17]} 19. Rge1+ $1 {[%emt 0:01:59]} Kd7 {[%emt 0:34:55]} (19... Kd8 $14) 20. Nxd5 $18 {[%emt 0:00:42]} Qxd5 {[%emt 0:06:57]} 21. Qf4 {[%emt 0:01:25]} Rd8 {[%emt 0:00:22]} (21... Re8 $142 22. Rxd5+ Bxd5 23. Rxe8 (23. Rd1 Kc6 $16) 23... Kxe8) 22. Qc4 $2 {[%emt 0:28:10]} ({Less strong is} 22. Qxf6 Bd6 23. Rxd5 Bxd5 $14) (22. Rxd5+ $18 Bxd5 23. Rd1 (23. Qxf6 Bd6 $14)) 22... Qd6 $11 {[%emt 0:04:19]} 23. f4 {[%emt 0:01:09]} Bc6 {[%emt 0:05:27]} 24. Qc5 {[%emt 0:02:06][%mdl 64] Pin} Kc7 {[%emt 0:03:43][%csl LRc5,LRf4]} 25. Qa7+ $40 {[%emt 0:02:44][%mdl 128] White attacks.} Bb7 {[%emt 0:00:16]} 26. Rxd6 {[%emt 0:00:06] Chess con chili.} Bxd6 {[%emt 0:00:12]} 27. Re4 {[%emt 0:00:04]} Rd7 {[%emt 0:01:28]} 28. Rc4+ {[%emt 0:01:48]} Kd8 {[%emt 0:00:04] And now ...Re8 would win.} 29. Rd4 {[%emt 0:00:46]} (29. Qd4 $11 Be7 30. Qb6+ Ke8 31. Rc7) 29... Re8 $2 {[%emt 0:00:48][%mdl 8192] [#]} (29... Ke7 $17 {Strongly threatening ...Bf3.} 30. Qb6 Bg2) 30. Qb6+ $2 {[%emt 0:01:17] [#]} (30. Rxd6 $1 $18 {[%mdl 512]} Rxd6 31. Qb8+ Ke7 32. Qxb7+ Kf8 33. Qxb4) 30... Ke7 {[%emt 0:00:26][%mdl 8192] [#]} (30... Kc8 $1 $17 {and life is bright.} 31. Rxd6 Re1+ 32. Kd2 Re6 33. Qc5+ Rc7 34. Qxb4 Rxd6+ 35. Qxd6 Rd7) 31. Rxd6 $18 {[%emt 0:00:05][%mdl 576] Deflection. White stays focused until the end.} Rxd6 {[%emt 0:00:15]} 32. Qxb7+ {[%emt 0:00:05][%mdl 4096] Endgame KQ-KRR} Kf8 {[%emt 0:00:07][%cal Re8e1]} 33. Qxb4 {[%emt 0:00:05]} Red8 {[%emt 0:00:39]} 34. b3 {[%emt 0:00:52]} Kg7 {[%emt 0:00:02]} 35. g5 {[%emt 0:00:43]} Rd4 {[%emt 0:00:35]} (35... fxg5 $142 36. fxg5 Kg8) 36. Qe7 {[%emt 0:00:32]} R8d6 {[%emt 0:00:42]} 37. h4 {[%emt 0:00:36]} (37. f5 $142) 37... Re6 {[%emt 0:00:31] [#]} 38. Qc7 {[%emt 0:00:37] aiming for f5.} Ree4 $2 {[%emt 0:01:10]} (38... Rd5 39. Kb2 Rf5) 39. gxf6+ {[%emt 0:01:10]} Kxf6 {[%emt 0:00:11]} 40. Qb6+ {[%emt 0:00:00]} ({Weaker is} 40. c3 Re1+ 41. Kb2 Rd2+ 42. Ka3 Ree2 $18) 40... Kf5 {[%emt 0:00:00]} (40... Kg7 $2 41. h5 h6 42. Qxa6 $18) 41. Qb7 {[%emt 0:11:24]} f6 {[%emt 0:01:31]} (41... Kg4 $142 42. Qxf7 Rxf4 43. Qg7+ Kh3 44. Qxh7 Rf6) 42. Qxh7+ {[%emt 0:00:31]} Kxf4 {[%emt 0:00:14]} 43. h5 {[%emt 0:01:00]} Ke5 {[%emt 0:08:16]} 44. Qe7+ {[%emt 0:06:00]} Kf5 {[%emt 0:00:12]} 45. Qc5+ {[%emt 0:00:05]} Ke6 {[%emt 0:00:41]} 46. Qc6+ {[%emt 0:01:03]} Kf7 {[%emt 0:04:32]} 47. Qb7+ {[%emt 0:02:22]} Re7 {[%emt 0:00:35]} 48. Qg2 {[%emt 0:00:02]} Re1+ {[%emt 0:03:31]} 49. Kb2 {[%emt 0:00:04]} Rh4 {[%emt 0:00:38]} (49... Re7 $142 50. h6 Rd8) 50. Qb7+ {[%emt 0:00:36]} Re7 {[%emt 0:01:57]} 51. Qd5+ {[%emt 0:00:04]} Re6 {[%emt 0:01:38]} 52. a4 {[%emt 0:00:15]} Ke7 {[%emt 0:01:07]} 53. Qb7+ {[%emt 0:00:33]} Kf8 {[%emt 0:01:37]} 54. Qc8+ {[%emt 0:03:38]} Ke7 {[%emt 0:07:27]} 55. Qc7+ {[%emt 0:01:00]} Kf8 {[%emt 0:00:16]} 56. Qd8+ {[%emt 0:00:27]} Kf7 {[%emt 0:00:07]} 57. Qd7+ {[%emt 0:00:08]} Re7 {[%emt 0:00:09]} 58. Qd5+ {[%emt 0:00:02]} Re6 {[%emt 0:02:53]} 59. a5 {[%emt 0:00:04]} Rh2 {[%emt 0:00:32]} 60. Kb1 {[%emt 0:01:00]} Rhe2 {[%emt 0:00:06]} 61. Qd7+ {[%emt 0:00:15]} Re7 {[%emt 0:00:05]} 62. Qg4 {[%emt 0:00:06]} R7e5 {[%emt 0:00:20]} 63. Qg6+ {[%emt 0:00:30]} Ke6 {[%emt 0:00:05]} 64. Qe8+ {[%emt 0:00:05]} Kf5 {[%emt 0:00:05]} 65. Qd7+ {[%emt 0:00:05]} Kf4 {[%emt 0:04:19]} 66. Qg7 {[%emt 0:00:05]} f5 {[%emt 0:00:15]} 67. h6 {[%emt 0:00:05] Black must now prevent h7.} Rh2 {[%emt 0:00:05]} 68. Kb2 {[%emt 0:00:30]} Ke4 {[%emt 0:00:41]} 69. h7 {[%emt 0:00:21]} f4 {[%emt 0:00:09]} 70. h8=Q {[%emt 0:00:31]} Rxh8 {[%emt 0:00:15]} 71. Qxh8 {[%emt 0:05:37] Intending Qh6 and mate.} f3 {[%emt 0:01:01]} 72. Qa8+ {[%emt 0:00:59] White mates.} Ke3 {[%emt 0:00:12]} 73. Qxa6 {[%emt 0:00:08]} f2 {[%emt 0:00:03]} 74. Qd3+ {[%emt 0:00:04]} Kf4 {[%emt 0:00:03]} 75. Qd4+ {[%emt 0:00:10] Weighted Error Value: White=0.43/Black=0.78} 1-0

[Event "1st Chessable Sunway Formentera 2022"]
[Site "Formentera Punta Prima"]
[Date "2022.05.04"]
[Round "6"]
[White "Chiku-Ratte, Olivier-Kenta"]
[Black "Dukic, Zachary"]
[Result "1-0"]
[ECO "A11"]
[WhiteElo "2358"]
[BlackElo "2243"]
[Annotator "TA"]
[PlyCount "97"]
[EventDate "2022.05.05"]
[EventType "swiss"]
[EventCountry "ESP"]
[SourceTitle "playchess.com"]
[Source "ChessBase"]
[SourceQuality "1"]
[TimeControl "40/5400+30:1800+30"]

{[%evp 9,97,15,17,12,25,15,31,-27,5,-9,16,0,13,12,46,40,41,44,60,39,38,35,122,125,131,130,98,113,132,139,135,137,150,149,141,107,110,107,101,44,69,48,70,-10,82,39,48,56,128,110,134,95,173,154,148,144,145,159,147,120,107,110,118,103,140,110,191,0,30,33,209,0,87,-13,-16,-29,-29,-36,946,946,946,946,946,885,883,856,29986,771,747,737]} 1. Nf3 {[%emt 0:00:04]} d5 {[%emt 0:00:06]} 2. c4 {[%emt 0:00:06]} c6 {[%emt 0:00:08]} 3. e3 {[%emt 0:00:05]} Nf6 {[%emt 0:00:06]} 4. Qc2 {[%emt 0:00:03]} g6 {[%emt 0:00:51]} 5. b3 {[%emt 0:00:24]} Bg7 {[%emt 0:00:11]} 6. Bb2 {[%emt 0:00:05] A11: English Opening: 1...c6.} O-O {[%emt 0:01:20]} 7. Be2 {[%emt 0:01:00]} Na6 {[%emt 0:02:09]} 8. a3 {[%emt 0:07:19] [#]} (8. d3 $14) 8... dxc4 $146 {[%emt 0:16:36]} (8... Bf5 $5 {[%cal Rf5c2]} 9. d3 Nc5 $11) ({Predecessor:} 8... Nc5 9. d3 Bf5 10. cxd5 Qxd5 11. e4 Qxb3 12. Qxb3 Nxb3 13. exf5 Nxa1 14. Bxa1 gxf5 {½-½ (53) Agrest,E (2596)-Stefansson,H (2602) Berlin 2015}) 9. bxc4 {[%emt 0:08:41]} Nc5 {[%emt 0:00:33]} 10. d3 {[%emt 0:06:06]} Qa5+ {[%emt 0:05:30]} 11. Nbd2 {[%emt 0:12:07]} Na4 {[%emt 0:05:57]} 12. Bd4 {[%emt 0:03:14]} c5 {[%emt 0:04:27]} 13. Be5 {[%emt 0:00:17]} Ne8 {[%emt 0:04:37]} 14. Bxg7 {[%emt 0:01:18]} Nxg7 {[%emt 0:01:46]} 15. Rb1 {[%emt 0:03:14]} f6 {[%emt 0:18:22]} (15... Nc3 $2 16. Nb3 $1 {[%mdl 512]} Qxa3 17. Qxc3 $18) (15... a6 $14) 16. Rb5 $16 {[%emt 0:04:45]} Qa6 {[%emt 0:00:10]} 17. Bd1 {[%emt 0:03:16]} Nb6 {[%emt 0:00:17][%cal Ba4b6,Bb6d5,Bd5f4,Bf4h3][%mdl 32]} 18. Rxc5 {[%emt 0:01:24]} Qxa3 {[%emt 0:00:53]} 19. Rb5 {[%emt 0:02:15]} Bd7 {[%emt 0:03:43]} 20. Rb3 {[%emt 0:09:16]} Qc5 {[%emt 0:02:19]} 21. d4 {[%emt 0:03:55]} Qc7 {[%emt 0:01:19]} 22. c5 {[%emt 0:05:38]} Nd5 {[%emt 0:00:50]} 23. e4 {[%emt 0:00:50]} Nf4 {[%emt 0:00:27]} 24. g3 {[%emt 0:01:09]} (24. O-O $16) 24... Nh3 $1 $14 {[%emt 0:00:46]} 25. Qc4+ {[%emt 0:10:29]} Kh8 {[%emt 0:00:19]} 26. d5 {[%emt 0:03:48]} (26. Kf1 $14) 26... Rac8 {[%emt 0:02:00]} (26... a5 $1 $11) 27. Rc3 {[%emt 0:00:47]} (27. Kf1 {is more complex.} a5 28. Kg2 Nh5 29. Nd4) 27... a6 {[%emt 0:01:10]} 28. Be2 $36 {[%emt 0:01:01][%mdl 2048] White is more active.} Qb8 {[%emt 0:06:48]} ({Black should try} 28... f5 $14) 29. Qb4 {[%emt 0:01:42]} Qa7 {[%emt 0:01:21]} 30. Kf1 {[%emt 0:00:32]} e6 {[%emt 0:00:13]} (30... a5 $16 31. Qd4 e6) 31. Kg2 $18 {[%emt 0:01:46]} exd5 {[%emt 0:00:47]} 32. exd5 {[%emt 0:00:05] Strongly threatening Rb1.} a5 {[%emt 0:04:13]} 33. Qa3 {[%emt 0:00:25] White is more active.} b5 {[%emt 0:00:32]} 34. cxb6 {[%emt 0:05:54]} Qxb6 {[%emt 0:00:13][%csl Gh3][%cal Rb6f2]} 35. Rf1 {[%emt 0:01:02]} Ra8 {[%emt 0:10:30]} 36. Ne4 {[%emt 0:01:07]} Nh5 {[%emt 0:00:40][%cal Oh3f4]} 37. Re3 {[%emt 0:00:48]} Bg4 {[%emt 0:04:30]} (37... N5f4+ $16 {might work better.} 38. gxf4 Nxf4+ 39. Kg1 Nxd5) 38. Kh1 $2 {[%emt 0:02:22]} ({Much less strong is} 38. Ng1 $6 Bxe2 39. Nxe2 Ng5 $16) ({Better is} 38. d6 $1 $18) 38... f5 {[%emt 0:00:22]} 39. Qc3+ {[%emt 0:00:25]} Kg8 $2 {[%emt 0:01:48] [#]} (39... Ng7 $1 $14 40. Ned2 f4) 40. Neg5 $2 {[%emt 0:00:00]} (40. d6 $1 $18 {Black must now prevent Bc4+.} h6 (40... Bxf3+ 41. Rxf3) 41. Bc4+ Kh7 42. Ne5 $1) 40... f4 {[%emt 0:00:00] [#]} (40... Rac8 $11 {remains equal.} 41. Bc4 Rxc4 42. Qxc4 Nxf2+ 43. Rxf2 Qxe3 44. d6+ Kh8 45. Qd4+ Qxd4 46. Nxd4 Nf6) 41. d6 {[%emt 0:19:22]} Nxg5 $1 $11 {[%emt 0:14:03]} 42. Nxg5 {[%emt 0:00:31] Bc4+ would kill now. Chess con chili.} Bxe2 {[%emt 0:00:39]} 43. Rxe2 {[%emt 0:00:17][%cal Be3e2,Be2e7,Be7a7][%mdl 32] aiming for Qc4+.} fxg3 $2 {[%emt 0:10:00][%mdl 8192]} (43... Qb5 $15 44. Qe5 Qxe5 45. Rxe5 fxg3) 44. Qc4+ $18 {[%emt 0:03:12]} Kh8 {[%emt 0:02:49]} 45. Re7 {[%emt 0:01:05][%csl Gg5][%cal Re7h7]} g2+ {[%emt 0:01:48]} 46. Kxg2 {[%emt 0:00:02][%csl Gg5][%cal Re7h7]} Ra7 {[%emt 0:01:49]} 47. d7 {[%emt 0:02:13][%csl Gg5][%cal Re7h7]} Nf6 {[%emt 0:02:13]} 48. d8=Q {[%emt 0:02:12]} (48. Nf7+ $142 Kg7 49. Ne5+ Kh8 {[#]} 50. Nxg6+ $1 hxg6 51. Qh4+ Nh5 52. Qg5 Kg8 53. Qh6 (53. d8=Q Rxd8 54. Rxa7 Nf4+ 55. Kh1 Qc6+ 56. f3 Rd1 $18)) 48... Rxd8 {[%emt 0:01:11]} 49. Rxa7 {[%emt 0:01:26] Weighted Error Value: White=0.31/Black=0.40} 1-0

[Event "1st Chessable Sunway Formentera 2022"]
[Site "Formentera Punta Prima"]
[Date "2022.05.04"]
[Round "6"]
[White "Bergez, Luc"]
[Black "Park, Evan"]
[Result "0-1"]
[ECO "B40"]
[WhiteElo "2331"]
[BlackElo "2431"]
[Annotator "TA"]
[PlyCount "102"]
[EventDate "2022.05.05"]
[EventType "swiss"]
[EventCountry "ESP"]
[SourceTitle "playchess.com"]
[Source "ChessBase"]
[SourceQuality "1"]
[TimeControl "40/5400+30:1800+30"]

{[%evp 9,102,-2,-3,5,-2,0,16,16,37,30,36,36,36,40,43,43,40,20,20,28,23,31,39,33,45,16,20,15,16,0,0,0,23,12,10,-37,-25,-33,-55,-54,-31,-92,-45,-140,-129,-132,-126,-139,-20,-135,-131,-210,-122,-122,-135,-132,-83,-70,-92,-129,-129,-129,-101,-114,-131,-116,-89,-582,-579,-565,-566,-560,-552,-552,-552,-537,-122,-527,-424,-270,0,-466,-453,-558,-563,-559,-553,-476,-467,-643,-554,-12837,-12826,-9156,-8997]} 1. e4 {[%emt 1:30:53]} c5 {[%emt 1:30:56]} 2. Nf3 {[%emt 0:00:19]} e6 {[%emt 0:00:31]} 3. b3 {[%emt 0:00:28]} Nc6 {[%emt 0:00:29]} 4. Bb2 {[%emt 0:00:00]} a6 {[%emt 0:00:00]} 5. Qe2 {[%emt 0:00:00]} d6 {[%emt 0:00:00]} 6. g3 {[%emt 0:00:19] B40: Sicilian: 2...e6, Unusual lines.} e5 {[%emt 0:00:00]} 7. Bg2 {[%emt 0:01:27]} Nf6 {[%emt 0:01:28]} 8. c3 {[%emt 0:00:00][%cal Bc2c3,Bc3d4,Bd4d5][%mdl 32] The position is equal.} Be7 {[%emt 0:00:00] [#]} 9. d4 $146 {[%emt 0:00:00]} ({Predecessor:} 9. O-O O-O 10. d4 Qc7 11. Nbd2 Re8 12. d5 Nb8 13. Nh4 b5 14. c4 Nbd7 15. Nf5 {1-0 (58) Sobolewski,P (2135)-Muhtarov,L (2135) Barlinek 2001}) 9... cxd4 {[%emt 0:01:11]} 10. cxd4 {[%emt 0:01:56]} Bg4 {[%emt 0:00:00]} 11. d5 {[%emt 0:00:06]} Nd4 {[%emt 0:01:02]} 12. Bxd4 {[%emt 0:00:29]} Bxf3 {[%emt 0:00:00]} 13. Bxf3 {[%emt 0:00:00]} exd4 {[%emt 0:01:17]} 14. Nd2 {[%emt 0:00:09]} Nd7 {[%emt 0:00:00][%cal Bf6d7,Bd7c5,Bc5d3,Bd3b2][%mdl 32]} 15. O-O {[%emt 0:00:00]} O-O {[%emt 0:00:00]} 16. Bg2 {[%emt 0:01:44]} Bf6 {[%emt 0:00:00][%cal Od4d3]} 17. Rad1 {[%emt 0:00:50]} Nc5 {[%emt 0:00:00]} 18. f4 {[%emt 0:00:00]} Re8 {[%emt 0:00:36] Inhibits e5.} 19. Kh1 {[%emt 0:00:00]} Rc8 {[%emt 0:00:00]} 20. Rc1 {[%emt 0:00:00]} h6 {[%emt 0:00:00]} 21. Qd1 {[%emt 0:00:00]} b5 {[%emt 0:00:00]} 22. Qg4 {[%emt 0:00:00]} (22. Bh3 $11 Rc7 23. Qf3) 22... Nd3 {[%emt 0:00:00]} ({Much less strong is} 22... Qa5 23. Nf3 Qd8 24. e5 dxe5 25. fxe5 Bxe5 26. Nxe5 (26. Nxd4 Bxd4 27. Qxd4 Qd6 $14) 26... Rxe5 27. Qxd4 $16) 23. Rxc8 {[%emt 0:00:00]} Qxc8 {[%emt 0:04:22]} 24. Qd1 {[%emt 0:03:34][%cal Oe4e5]} Nb2 {[%emt 0:00:00]} 25. Qc1 {[%emt 0:00:00]} (25. Qe1 $15) 25... d3 {[%emt 0:00:00] Black is more active.} (25... Qc3 $1 $17 26. Nb1 Qxc1 27. Rxc1 Nd3) 26. e5 {[%emt 0:00:00]} ({White should try} 26. Qc6 $15) 26... Qxc1 $17 {[%emt 0:01:12]} 27. Rxc1 {[%emt 0:01:42]} dxe5 {[%emt 0:00:53]} 28. d6 {[%emt 0:00:00] [#]} exf4 {[%emt 0:00:00]} (28... Rd8 $1 $17 {Threatens to win with ...exf4.} 29. Rc6 exf4 30. gxf4 Bh4) 29. Ne4 {[%emt 0:00:00]} (29. d7 $1 $11 {was the only way to keep the balance.} Rd8 30. Bc6) 29... Rd8 {[%emt 0:00:00]} 30. Bh3 {[%emt 0:00:00]} (30. gxf4 $17 Bd4 31. f5) 30... d2 {[%emt 0:00:00]} ({Black should play} 30... fxg3 $19 31. hxg3 Bg5) 31. Nxd2 {[%emt 0:01:58]} Rxd6 {[%emt 0:01:18]} 32. Ne4 {[%emt 0:00:00]} Rd8 {[%emt 0:00:00]} (32... Rd4 $142 33. Nxf6+ gxf6 34. gxf4 Nd3) 33. Nxf6+ {[%emt 0:00:00]} gxf6 {[%emt 0:01:42]} 34. Rc8 {[%emt 0:01:11]} Rxc8 {[%emt 0:00:00]} 35. Bxc8 {[%emt 0:00:53][%mdl 4096] Endgame KB-KN} a5 {[%emt 0:00:13]} 36. gxf4 {[%emt 0:00:00] [#]} b4 $1 {[%emt 0:00:06]} 37. Kg2 {[%emt 0:00:00]} Nd3 {[%emt 0:01:26]} 38. Bf5 $2 {[%emt 0:00:40][%mdl 8192]} (38. Kf3 $17 {is a better chance.}) 38... Nxf4+ $19 {[%emt 0:00:16]} 39. Kf3 {[%emt 0:01:05]} Nd5 {[%emt 0:00:00]} 40. Ke4 {[%emt 0:00:33]} Nc3+ {[%emt 0:01:30]} 41. Kd4 {[%emt 0:29:28]} Nxa2 {[%emt 0:29:04]} 42. Kc5 {[%emt 0:00:15]} Nc3 $2 {[%emt 0:00:00]} (42... Kf8 $19 {is more deadly.} 43. Kd6 Nc1) 43. Bc2 $2 {[%emt 0:00:38][%mdl 8192]} (43. Kb6 $17) 43... Ne2 {[%emt 0:01:26]} 44. Bd1 {[%emt 0:01:04]} Nc3 {[%emt 0:01:18]} (44... Nc1 45. Kb5 f5 46. Kxa5 Na2) 45. Bc2 {[%emt 0:01:06]} Kf8 {[%emt 0:00:00] Black is clearly winning.} 46. Kb6 {[%emt 0:00:00]} Ke7 {[%emt 0:01:08] ...Kd6 is the strong threat.} 47. Kxa5 {[%emt 0:01:01]} Nd5 {[%emt 0:00:35] White must now prevent ...Ke6.} 48. Kb5 {[%emt 0:00:00]} Kd6 {[%emt 0:00:24] And now ...Ke5 would win.} 49. Bh7 {[%emt 0:00:00]} Ke5 {[%emt 0:00:00] ( -> ...f5)} 50. Kc5 {[%emt 0:00:00]} f5 {[%emt 0:00:16]} 51. Bg8 {[%emt 0:02:04]} Ke6 {[%emt 0:00:47] Weighted Error Value: White=0.45/Black=0.40} 0-1

[Event "1st Chessable Sunway Formentera 2022"]
[Site "Formentera Punta Prima"]
[Date "2022.05.04"]
[Round "6"]
[White "Garcia Martin, Marta"]
[Black "Batsiashvili, Nino"]
[Result "0-1"]
[ECO "B13"]
[WhiteElo "2326"]
[BlackElo "2463"]
[Annotator "TA"]
[PlyCount "78"]
[EventDate "2022.05.05"]
[EventType "swiss"]
[EventCountry "ESP"]
[SourceTitle "playchess.com"]
[Source "ChessBase"]
[SourceQuality "1"]
[TimeControl "40/5400+30:1800+30"]

{[%evp 9,78,19,52,1,14,19,13,0,0,7,15,14,28,0,4,0,0,6,14,8,29,0,0,0,0,-12,-6,-27,-29,-36,6,21,105,0,7,-73,0,0,0,0,0,-21,-5,-6,0,0,0,0,18,-58,-20,-27,-18,-18,-25,-140,-59,-60,-52,-163,-79,-238,-121,-380,-376,-356,-151,-405,-379,-808,-570]} 1. e4 {[%emt 0:00:03]} c6 {[%emt 0:00:02]} 2. d4 {[%emt 0:00:09]} d5 {[%emt 0:00:03]} 3. exd5 {[%emt 0:05:01]} cxd5 {[%emt 0:00:05]} 4. Nf3 {[%emt 0:00:06]} Nf6 {[%emt 0:01:57]} 5. Ne5 {[%emt 0:00:10]} Bd7 {[%emt 0:06:18]} 6. c4 {[%emt 0:07:12] B13: Caro-Kann: Exchange Variation and Panov-Botvinnik Attack.} (6. c3 $14) 6... e6 $11 {[%emt 0:07:55]} 7. Nc3 {[%emt 0:05:58]} Nc6 {[%emt 0:08:48] [#]} 8. Nxd7 $146 {[%emt 0:24:09] The position is equal.} ({Predecessor:} 8. cxd5 exd5 9. Nxd7 Qxd7 10. Bb5 Be7 11. O-O O-O 12. Be3 a6 13. Ba4 Bd6 14. h3 Rac8 15. Qf3 Bb8 16. Rad1 b5 17. Bb3 Ne7 18. Bg5 b4 19. Bxf6 bxc3 20. Bxe7 Qxe7 21. bxc3 {1-0 (34) Paolillo,G (1916)-Pistis,L (1401) Tarvisio 2014}) 8... Qxd7 {[%emt 0:00:22]} 9. c5 {[%emt 0:00:07]} Be7 {[%emt 0:05:42]} 10. Bb5 {[%emt 0:03:47]} Ne4 {[%emt 0:03:28]} 11. Qd3 {[%emt 0:09:44]} Nxc3 {[%emt 0:11:55]} 12. Qxc3 {[%emt 0:00:11]} O-O {[%emt 0:01:57]} 13. O-O {[%emt 0:02:54]} Bf6 {[%emt 0:00:14]} 14. Be3 {[%emt 0:01:47]} Rfd8 {[%emt 0:03:33]} 15. Rfe1 {[%emt 0:06:24]} Qc7 {[%emt 0:00:26]} 16. Rad1 {[%emt 0:09:48]} a5 {[%emt 0:03:00]} 17. a3 {[%emt 0:06:10]} a4 {[%emt 0:01:25]} 18. Qc2 {[%emt 0:00:56]} Qa5 {[%emt 0:00:16]} 19. Qe2 {[%emt 0:02:51]} Ne7 {[%emt 0:03:47]} 20. g4 {[%emt 0:01:14] g5 is the strong threat.} h6 {[%emt 0:03:05] [#] Against g5} (20... g6 $1 $11 {remains equal.}) 21. Bd3 {[%emt 0:03:48]} ({Better is} 21. Rf1 $1 $16) 21... b6 {[%emt 0:00:20]} 22. Rc1 {[%emt 0:03:08]} (22. f4 $11 Nc6 23. Bb5) 22... bxc5 {[%emt 0:02:11]} (22... Nc6 $17) 23. Rxc5 {[%emt 0:00:22]} Qb6 {[%emt 0:00:11]} 24. Rec1 {[%emt 0:00:57]} Rdb8 {[%emt 0:02:57]} 25. Bb1 {[%emt 0:03:55]} Qd6 {[%emt 0:05:23]} (25... Ra5 $5 {[%cal Ra5c5]}) 26. Qd3 {[%emt 0:01:35] Black must now prevent Qh7+.} g6 {[%emt 0:01:06]} 27. Qd2 {[%emt 0:00:06]} e5 {[%emt 0:04:01]} 28. Bxh6 {[%emt 0:00:21]} Qe6 {[%emt 0:01:33]} 29. Qe2 {[%emt 0:01:31]} (29. h3 $1 $11) 29... exd4 {[%emt 0:02:43]} (29... Kh7 $5 {[%cal Rh7h6]} 30. g5 Bh8 31. dxe5 Bxe5 $15) 30. Qxe6 {[%emt 0:00:20]} fxe6 {[%emt 0:00:01]} 31. Rc7 {[%emt 0:00:36] Hoping for g5.} Kf7 {[%emt 0:04:31]} 32. Bf4 {[%emt 0:00:04]} (32. Kf1 $11) 32... g5 {[%emt 0:01:17]} ({Much worse is} 32... Rxb2 $6 33. g5 Bg7 34. Bd6 $11) (32... e5 $17 33. Bh6 Rxb2) 33. Bd6 $15 {[%emt 0:00:25]} Rxb2 {[%emt 0:00:22][%cal Oa8c8]} 34. Rd7 {[%emt 0:01:05] [#]} ({White should play} 34. Bd3 $15) 34... Rb3 {[%emt 0:05:19]} (34... Ke8 $1 $19 {[%cal Re8d7] and Black stays clearly on top.} 35. Rdc7 e5) 35. Re1 $2 {[%emt 0:00:23]} (35. Bb4 $17 {keeps fighting.}) 35... Ra6 {[%emt 0:01:58]} (35... Ke8 $19 36. Rc7 Ra6) 36. Bc2 $2 {[%emt 0:00:41][%mdl 8192]} (36. Bb4 $17) 36... Rc3 $19 {[%emt 0:00:41]} 37. Bb1 {[%emt 0:00:16]} Rac6 {[%emt 0:03:14]} (37... Ke8 $19 {is more deadly.} 38. Bxe7 Bxe7) 38. Bxe7 $2 {[%emt 0:00:24]} (38. Bb4 $17) 38... Bxe7 {[%emt 0:00:03]} 39. Bf5 $2 {[%emt 0:00:32]} (39. Kg2) 39... d3 {[%emt 0:00:46] Weighted Error Value: White=0.56/Black=0.28 (precise)} 0-1